[Event "Live Chess"]
[Site "Chess.com"]
[Date "2023.05.20"]
[Round "-"]
[White "viktorskliarov"]
[Black "xx_blindpuffin_xx"]
[Result "1-0"]
[WhiteElo "2650"]
[BlackElo "2190"]
[TimeControl "300"]
[EndTime "11:06:35 PDT"]
[Termination "viktorskliarov won by resignation"]

1. e4 {[%clk 0:04:57.8]} 1... c6 {[%clk 0:04:57.3]} 2. d4 {[%clk 0:04:56]} 2...
d5 {[%clk 0:04:56.6]} 3. e5 {[%clk 0:04:54.8]} 3... Bf5 {[%clk 0:04:54.6]} 4.
Nf3 {[%clk 0:04:52.7]} 4... e6 {[%clk 0:04:51.8]} 5. Be2 {[%clk 0:04:51.1]} 5...
Ne7 {[%clk 0:04:47.5]} 6. O-O {[%clk 0:04:49.9]} 6... h6 {[%clk 0:04:42.9]} 7.
a4 {[%clk 0:04:48.7]} 7... c5 {[%clk 0:04:41.1]} 8. c3 {[%clk 0:04:37.1]} 8...
Nec6 {[%clk 0:04:38]} 9. Na3 {[%clk 0:04:34.6]} 9... Be7 {[%clk 0:04:35]} 10.
Nc2 {[%clk 0:04:28.9]} 10... O-O {[%clk 0:04:22.7]} 11. Ne3 {[%clk 0:04:27.4]}
11... Bh7 {[%clk 0:04:21.2]} 12. Bd3 {[%clk 0:04:07.4]} 12... Bxd3 {[%clk
0:04:13.9]} 13. Qxd3 {[%clk 0:04:07.3]} 13... Nd7 {[%clk 0:04:12.8]} 14. Bd2
{[%clk 0:03:25.4]} 14... Rc8 {[%clk 0:04:10.1]} 15. b3 {[%clk 0:03:12.3]} 15...
cxd4 {[%clk 0:03:52.9]} 16. cxd4 {[%clk 0:03:10.4]} 16... Nb4 {[%clk 0:02:56.7]}
17. Bxb4 {[%clk 0:03:08.1]} 17... Bxb4 {[%clk 0:02:56.6]} 18. Rac1 {[%clk
0:03:07.1]} 18... Qa5 {[%clk 0:02:52.5]} 19. h4 {[%clk 0:02:43.6]} 19... Ba3
{[%clk 0:02:26.9]} 20. Rxc8 {[%clk 0:02:24.3]} 20... Rxc8 {[%clk 0:02:26.8]} 21.
Rb1 {[%clk 0:02:23.2]} 21... Rc3 {[%clk 0:02:20.4]} 22. Qd1 {[%clk 0:02:20.9]}
22... b5 {[%clk 0:01:58.3]} 23. h5 {[%clk 0:01:54.2]} 23... bxa4 {[%clk
0:01:33.3]} 24. bxa4 {[%clk 0:01:54.1]} 24... Nb6 {[%clk 0:01:32.5]} 25. Kh2
{[%clk 0:01:42.6]} 25... Qxa4 {[%clk 0:01:12.2]} 26. Rxb6 {[%clk 0:01:40.1]}
26... Qxd1 {[%clk 0:01:07]} 27. Rb8+ {[%clk 0:01:38.2]} 27... Bf8 {[%clk
0:01:06.1]} 28. Nxd1 {[%clk 0:01:36.9]} 28... Rc1 {[%clk 0:01:04.7]} 29. Ne3
{[%clk 0:01:34.6]} 29... a5 {[%clk 0:01:03.5]} 30. Ra8 {[%clk 0:01:33.2]} 30...
Ra1 {[%clk 0:01:02.3]} 31. Nd2 {[%clk 0:01:13.4]} 31... a4 {[%clk 0:01:00.8]}
32. Nb3 {[%clk 0:01:11.8]} 32... Ra2 {[%clk 0:00:40]} 33. Nc5 {[%clk 0:01:09]}
1-0

[Event "Live Chess"]
[Site "Chess.com"]
[Date "2023.05.20"]
[Round "-"]
[White "ClassyChameleon"]
[Black "tpm07"]
[Result "0-1"]
[WhiteElo "1074"]
[BlackElo "1950"]
[TimeControl "300"]
[EndTime "11:06:48 PDT"]
[Termination "tpm07 won by checkmate"]

1. e4 {[%clk 0:04:59.6]} 1... c5 {[%clk 0:04:56]} 2. Nf3 {[%clk 0:04:57.8]} 2...
Nc6 {[%clk 0:04:54.4]} 3. Bc4 {[%clk 0:04:55.4]} 3... e6 {[%clk 0:04:51.3]} 4.
c3 {[%clk 0:04:54.2]} 4... Nf6 {[%clk 0:04:48.1]} 5. d3 {[%clk 0:04:53.3]} 5...
d5 {[%clk 0:04:45.3]} 6. exd5 {[%clk 0:04:48.7]} 6... exd5 {[%clk 0:04:45.1]} 7.
Bb3 {[%clk 0:04:47.6]} 7... Be7 {[%clk 0:04:43.1]} 8. O-O {[%clk 0:04:45.7]}
8... O-O {[%clk 0:04:41.5]} 9. c4 {[%clk 0:04:39.7]} 9... d4 {[%clk 0:04:36.2]}
10. Nbd2 {[%clk 0:04:37]} 10... Bf5 {[%clk 0:04:32.2]} 11. Bc2 {[%clk 0:04:31]}
11... Nb4 {[%clk 0:04:29.7]} 12. Ne4 {[%clk 0:04:25.4]} 12... Bg4 {[%clk
0:04:13.7]} 13. Nxf6+ {[%clk 0:04:18.7]} 13... Bxf6 {[%clk 0:04:11.4]} 14. Bd2
{[%clk 0:04:08.4]} 14... Nxc2 {[%clk 0:04:06.7]} 15. Qxc2 {[%clk 0:04:07.2]}
15... Bxf3 {[%clk 0:04:05.8]} 16. gxf3 {[%clk 0:04:06.8]} 16... Qd7 {[%clk
0:04:01.4]} 17. Bf4 {[%clk 0:04:02.7]} 17... Qh3 {[%clk 0:03:57]} 18. Qe2 {[%clk
0:03:43.7]} 18... Rfe8 {[%clk 0:03:52.8]} 19. Qxe8+ {[%clk 0:03:31.5]} 19...
Rxe8 {[%clk 0:03:48.4]} 20. Rfe1 {[%clk 0:03:29.7]} 20... Rxe1+ {[%clk 0:03:45]}
21. Rxe1 {[%clk 0:03:28.5]} 21... h6 {[%clk 0:03:43.4]} 22. Bg3 {[%clk 0:03:27]}
22... Qf5 {[%clk 0:03:37.6]} 23. Re8+ {[%clk 0:03:18.9]} 23... Kh7 {[%clk
0:03:29.5]} 24. Ra8 {[%clk 0:03:14.2]} 24... Qxd3 {[%clk 0:03:17.5]} 25. Rxa7
{[%clk 0:03:12.9]} 25... Qxc4 {[%clk 0:03:13.5]} 26. Rxb7 {[%clk 0:03:12]} 26...
d3 {[%clk 0:03:12.2]} 27. b3 {[%clk 0:03:07.4]} 27... Qc1+ {[%clk 0:03:08.9]}
28. Kg2 {[%clk 0:03:06.4]} 28... d2 {[%clk 0:03:07.3]} 29. Rxf7 {[%clk
0:03:03.8]} 29... d1=Q {[%clk 0:03:01.9]} 30. Rc7 {[%clk 0:02:57.3]} 30... Qf1#
{[%clk 0:02:57.8]} 0-1

[Event "Live Chess"]
[Site "Chess.com"]
[Date "2023.05.20"]
[Round "-"]
[White "Richardallis"]
[Black "MaximKris"]
[Result "1/2-1/2"]
[WhiteElo "1677"]
[BlackElo "1869"]
[TimeControl "300"]
[EndTime "11:06:55 PDT"]
[Termination "Game drawn by repetition"]

1. d4 {[%clk 0:04:51.5]} 1... d5 {[%clk 0:04:58.8]} 2. Nf3 {[%clk 0:04:51]} 2...
Nf6 {[%clk 0:04:57.8]} 3. Bg5 {[%clk 0:04:50.3]} 3... Bf5 {[%clk 0:04:56.2]} 4.
c3 {[%clk 0:04:47.3]} 4... h6 {[%clk 0:04:54.9]} 5. Bxf6 {[%clk 0:04:45.8]} 5...
exf6 {[%clk 0:04:54.8]} 6. Nbd2 {[%clk 0:04:45.2]} 6... Bd6 {[%clk 0:04:54.7]}
7. e3 {[%clk 0:04:44.3]} 7... Nd7 {[%clk 0:04:53.5]} 8. Be2 {[%clk 0:04:43.3]}
8... O-O {[%clk 0:04:52.2]} 9. O-O {[%clk 0:04:41.9]} 9... Re8 {[%clk
0:04:51.7]} 10. Re1 {[%clk 0:04:41]} 10... Be4 {[%clk 0:04:50.8]} 11. Nxe4
{[%clk 0:04:40]} 11... dxe4 {[%clk 0:04:50.7]} 12. Nd2 {[%clk 0:04:39.4]} 12...
c5 {[%clk 0:04:48.3]} 13. f4 {[%clk 0:04:37.5]} 13... exf3 {[%clk 0:04:46.8]}
14. Bxf3 {[%clk 0:04:35.8]} 14... cxd4 {[%clk 0:04:46.7]} 15. exd4 {[%clk
0:04:34.9]} 15... Rxe1+ {[%clk 0:04:45.8]} 16. Qxe1 {[%clk 0:04:33.9]} 16... Qb6
{[%clk 0:04:44.6]} 17. Nc4 {[%clk 0:04:31.3]} 17... Qc7 {[%clk 0:04:42.7]} 18.
Nxd6 {[%clk 0:04:30.5]} 18... Qxd6 {[%clk 0:04:42.6]} 19. Qe4 {[%clk 0:04:14.5]}
19... Rb8 {[%clk 0:04:36.1]} 20. Re1 {[%clk 0:04:12.3]} 20... b5 {[%clk
0:04:32.5]} 21. a3 {[%clk 0:04:10.3]} 21... a5 {[%clk 0:04:31.1]} 22. Qe7 {[%clk
0:04:09.1]} 22... Qxe7 {[%clk 0:04:28.3]} 23. Rxe7 {[%clk 0:04:08.6]} 23... Nb6
{[%clk 0:04:27.9]} 24. Bc6 {[%clk 0:04:05.9]} 24... Nc4 {[%clk 0:04:25.6]} 25.
Re8+ {[%clk 0:04:00.2]} 25... Rxe8 {[%clk 0:04:24.2]} 26. Bxe8 {[%clk
0:04:00.1]} 26... Nxb2 {[%clk 0:04:23.8]} 27. Bxb5 {[%clk 0:03:59.3]} 27... Nd1
{[%clk 0:04:19.8]} 28. c4 {[%clk 0:03:57.8]} 28... Nc3 {[%clk 0:04:17.9]} 29.
Bc6 {[%clk 0:03:54.8]} 29... Ne2+ {[%clk 0:04:15.1]} 30. Kf2 {[%clk 0:03:54]}
30... Nxd4 {[%clk 0:04:15]} 31. Bd7 {[%clk 0:03:48.4]} 31... Kf8 {[%clk
0:04:12.5]} 32. a4 {[%clk 0:03:43.9]} 32... Ke7 {[%clk 0:04:10.6]} 33. Bb5
{[%clk 0:03:43.4]} 33... Kd6 {[%clk 0:04:08]} 34. Ke3 {[%clk 0:03:42.9]} 34...
Kc5 {[%clk 0:04:06.8]} 35. Kd3 {[%clk 0:03:40.5]} 35... Ne6 {[%clk 0:03:59.8]}
36. g3 {[%clk 0:03:37.6]} 36... Kb4 {[%clk 0:03:57.3]} 37. Ke4 {[%clk
0:03:34.8]} 37... Nc5+ {[%clk 0:03:56.7]} 38. Kd5 {[%clk 0:03:33.9]} 38... g5
{[%clk 0:03:49]} 39. g4 {[%clk 0:03:32.7]} 39... Nd3 {[%clk 0:03:40.5]} 40. Be8
{[%clk 0:03:30.5]} 40... Nf4+ {[%clk 0:03:32.9]} 41. Kd4 {[%clk 0:03:29.1]}
41... Ne6+ {[%clk 0:03:31.9]} 42. Kd3 {[%clk 0:03:26.4]} 42... Nd8 {[%clk
0:03:22.1]} 43. Bd7 {[%clk 0:03:20.6]} 43... Nb7 {[%clk 0:03:17.4]} 44. Be8
{[%clk 0:03:19.8]} 44... Nc5+ {[%clk 0:03:16.7]} 45. Kd4 {[%clk 0:03:18.7]}
45... Ne6+ {[%clk 0:02:56.7]} 46. Kd3 {[%clk 0:03:17.3]} 46... Nf4+ {[%clk
0:02:53.4]} 47. Kd4 {[%clk 0:03:16.1]} 47... Ne2+ {[%clk 0:02:51.3]} 48. Kd5
{[%clk 0:03:13.4]} 48... Nf4+ {[%clk 0:02:26.1]} 49. Kd4 {[%clk 0:03:11.8]}
1/2-1/2

[Event "Live Chess"]
[Site "Chess.com"]
[Date "2023.05.20"]
[Round "-"]
[White "AttackingSnowLeopard"]
[Black "Doge_Dandolo"]
[Result "1/2-1/2"]
[WhiteElo "2116"]
[BlackElo "2122"]
[TimeControl "300"]
[EndTime "11:07:03 PDT"]
[Termination "Game drawn by agreement"]

1. Nf3 {[%clk 0:04:57.8]} 1... Nf6 {[%clk 0:04:58.7]} 2. d4 {[%clk 0:04:56.9]}
2... d5 {[%clk 0:04:57.5]} 3. c4 {[%clk 0:04:56.1]} 3... c6 {[%clk 0:04:56.7]}
4. e3 {[%clk 0:04:54.6]} 4... a6 {[%clk 0:04:52.9]} 5. b3 {[%clk 0:04:52.2]}
5... Bf5 {[%clk 0:04:49.7]} 6. Bd3 {[%clk 0:04:50.1]} 6... Bg6 {[%clk
0:04:44.7]} 7. Nc3 {[%clk 0:04:47.5]} 7... e6 {[%clk 0:04:43.4]} 8. Bb2 {[%clk
0:04:46.2]} 8... Bd6 {[%clk 0:04:42]} 9. O-O {[%clk 0:04:44.5]} 9... Nbd7 {[%clk
0:04:38.5]} 10. Qc2 {[%clk 0:04:44]} 10... Qb8 {[%clk 0:04:36.4]} 11. h3 {[%clk
0:04:35.8]} 11... Bxd3 {[%clk 0:04:25.4]} 12. Qxd3 {[%clk 0:04:33.8]} 12... O-O
{[%clk 0:04:22.5]} 13. e4 {[%clk 0:04:33]} 13... dxe4 {[%clk 0:04:21]} 14. Nxe4
{[%clk 0:04:31.4]} 14... Nxe4 {[%clk 0:04:20.5]} 15. Qxe4 {[%clk 0:04:30.9]}
15... Nf6 {[%clk 0:04:19.9]} 16. Qh4 {[%clk 0:04:30.4]} 16... Re8 {[%clk
0:04:14.7]} 17. d5 {[%clk 0:04:27.1]} 17... exd5 {[%clk 0:04:07.6]} 18. Bxf6
{[%clk 0:04:24]} 18... gxf6 {[%clk 0:04:02.9]} 19. cxd5 {[%clk 0:04:15.3]} 19...
Be5 {[%clk 0:03:56.6]} 20. Rae1 {[%clk 0:04:08.7]} 20... cxd5 {[%clk 0:03:54.8]}
21. Nxe5 {[%clk 0:03:40.2]} 21... fxe5 {[%clk 0:03:51.5]} 22. Qg5+ {[%clk
0:03:39.1]} 22... Kf8 {[%clk 0:03:48.6]} 23. Qh6+ {[%clk 0:03:31.4]} 23... Kg8
{[%clk 0:03:46.9]} 24. Qg5+ {[%clk 0:03:19.5]} 24... Kf8 {[%clk 0:03:45.5]} 25.
Qh6+ {[%clk 0:03:18.7]} 25... Kg8 {[%clk 0:03:44.4]} 1/2-1/2

[Event "Live Chess"]
[Site "Chess.com"]
[Date "2023.05.20"]
[Round "-"]
[White "Driftboard"]
[Black "booktrunk"]
[Result "0-1"]
[WhiteElo "693"]
[BlackElo "1335"]
[TimeControl "300"]
[EndTime "11:07:23 PDT"]
[Termination "booktrunk won by checkmate"]

1. e4 {[%clk 0:04:59.3]} 1... d5 {[%clk 0:04:59.2]} 2. exd5 {[%clk 0:04:57.8]}
2... Qxd5 {[%clk 0:04:57.8]} 3. Nc3 {[%clk 0:04:57.4]} 3... Qe6+ {[%clk
0:04:56.2]} 4. Qe2 {[%clk 0:04:54.1]} 4... Qxe2+ {[%clk 0:04:54.8]} 5. Bxe2
{[%clk 0:04:53.7]} 5... c6 {[%clk 0:04:54.1]} 6. Nf3 {[%clk 0:04:52.7]} 6... Bf5
{[%clk 0:04:50.6]} 7. d3 {[%clk 0:04:51.4]} 7... e6 {[%clk 0:04:49.4]} 8. Bf4
{[%clk 0:04:48.5]} 8... Nf6 {[%clk 0:04:47.2]} 9. Bxb8 {[%clk 0:04:46.2]} 9...
Rxb8 {[%clk 0:04:46]} 10. Nd4 {[%clk 0:04:43.5]} 10... Bg6 {[%clk 0:04:39.8]}
11. O-O {[%clk 0:04:39.8]} 11... h5 {[%clk 0:04:34.3]} 12. h3 {[%clk 0:04:37.7]}
12... Bc5 {[%clk 0:04:30.9]} 13. Nf3 {[%clk 0:04:30.2]} 13... O-O {[%clk
0:04:28.5]} 14. Ne5 {[%clk 0:04:26.4]} 14... Bh7 {[%clk 0:04:22.1]} 15. Bxh5
{[%clk 0:04:18.7]} 15... Nxh5 {[%clk 0:04:17.8]} 16. Nd7 {[%clk 0:04:16.2]}
16... Rbd8 {[%clk 0:04:16.6]} 17. Nxf8 {[%clk 0:04:14.5]} 17... Kxf8 {[%clk
0:04:15.7]} 18. Ne4 {[%clk 0:04:08.6]} 18... Bb6 {[%clk 0:04:12.2]} 19. Rfe1
{[%clk 0:04:05.5]} 19... Nf4 {[%clk 0:04:08.1]} 20. Kh2 {[%clk 0:04:00]} 20...
Bc7 {[%clk 0:04:05.3]} 21. g3 {[%clk 0:03:57.5]} 21... Nd5 {[%clk 0:04:02.7]}
22. Nc5 {[%clk 0:03:45.8]} 22... b6 {[%clk 0:03:57.5]} 23. Ne4 {[%clk
0:03:41.4]} 23... Nb4 {[%clk 0:03:52.4]} 24. Rec1 {[%clk 0:03:34.7]} 24... Bxe4
{[%clk 0:03:44.7]} 25. dxe4 {[%clk 0:03:33]} 25... Rd2 {[%clk 0:03:43.2]} 26. c3
{[%clk 0:03:30.7]} 26... Na6 {[%clk 0:03:37]} 27. b3 {[%clk 0:03:26.2]} 27...
Rxf2+ {[%clk 0:03:35.5]} 28. Kg1 {[%clk 0:03:24.4]} 28... Rf3 {[%clk 0:03:33.9]}
29. Kg2 {[%clk 0:03:23.5]} 29... Rxg3+ {[%clk 0:03:32.4]} 30. Kf2 {[%clk
0:03:18.6]} 30... Rxh3 {[%clk 0:03:31.1]} 31. Rd1 {[%clk 0:03:13.9]} 31... Rxc3
{[%clk 0:03:26.6]} 32. Rd7 {[%clk 0:03:11.4]} 32... Ke8 {[%clk 0:03:20.1]} 33.
Rad1 {[%clk 0:03:06.1]} 33... Rc2+ {[%clk 0:03:16]} 34. Kf3 {[%clk 0:03:01.8]}
34... Rxa2 {[%clk 0:03:13.8]} 35. Ke3 {[%clk 0:02:56.8]} 35... Ra3 {[%clk
0:03:12.4]} 36. R7d3 {[%clk 0:02:53.8]} 36... Ra2 {[%clk 0:03:08]} 37. R1d2
{[%clk 0:02:49.3]} 37... Rxd2 {[%clk 0:03:05.9]} 38. Rxd2 {[%clk 0:02:48.2]}
38... Ke7 {[%clk 0:03:04.9]} 39. Rg2 {[%clk 0:02:46]} 39... g6 {[%clk
0:03:03.3]} 40. e5 {[%clk 0:02:44.8]} 40... Bxe5 {[%clk 0:03:02]} 41. Ke4 {[%clk
0:02:43.1]} 41... Bd6 {[%clk 0:03:00.4]} 42. Rc2 {[%clk 0:02:37]} 42... Nc5+
{[%clk 0:02:58.7]} 43. Ke3 {[%clk 0:02:30.5]} 43... Kd7 {[%clk 0:02:54.7]} 44.
b4 {[%clk 0:02:27.3]} 44... Nb7 {[%clk 0:02:50.1]} 45. Rb2 {[%clk 0:02:20.6]}
45... Be5 {[%clk 0:02:40.8]} 46. b5 {[%clk 0:02:18.3]} 46... Bxb2 {[%clk
0:02:38.8]} 47. bxc6+ {[%clk 0:02:16.6]} 47... Kxc6 {[%clk 0:02:38.2]} 48. Kd3
{[%clk 0:02:15.8]} 48... Be5 {[%clk 0:02:36.3]} 49. Ke4 {[%clk 0:02:14.9]} 49...
f6 {[%clk 0:02:34.8]} 50. Ke3 {[%clk 0:02:14.5]} 50... a5 {[%clk 0:02:33.9]} 51.
Kd3 {[%clk 0:02:14.1]} 51... g5 {[%clk 0:02:33.1]} 52. Ke3 {[%clk 0:02:13.4]}
52... a4 {[%clk 0:02:32.4]} 53. Kd3 {[%clk 0:02:12.9]} 53... g4 {[%clk
0:02:31.9]} 54. Ke3 {[%clk 0:02:11.8]} 54... a3 {[%clk 0:02:31.2]} 55. Kd3
{[%clk 0:02:11]} 55... g3 {[%clk 0:02:30.5]} 56. Kc2 {[%clk 0:02:10.2]} 56... g2
{[%clk 0:02:29.6]} 57. Kb3 {[%clk 0:02:09.5]} 57... g1=Q {[%clk 0:02:27.8]} 58.
Kxa3 {[%clk 0:02:09]} 58... Qc5+ {[%clk 0:02:25.3]} 59. Kb3 {[%clk 0:02:08.5]}
59... f5 {[%clk 0:02:24.4]} 60. Ka4 {[%clk 0:02:04.9]} 60... f4 {[%clk
0:02:22.8]} 61. Kb3 {[%clk 0:02:00.9]} 61... Bd6 {[%clk 0:02:21.5]} 62. Ka4
{[%clk 0:01:58.7]} 62... f3 {[%clk 0:02:20.6]} 63. Kb3 {[%clk 0:01:57.6]} 63...
f2 {[%clk 0:02:19.8]} 64. Kb2 {[%clk 0:01:55.8]} 64... f1=Q {[%clk 0:02:17.4]}
65. Kb3 {[%clk 0:01:54.6]} 65... Qe3+ {[%clk 0:02:15.9]} 66. Kb2 {[%clk
0:01:50.3]} 66... Qff2+ {[%clk 0:02:14.8]} 67. Kb1 {[%clk 0:01:46.7]} 67...
Qee1# {[%clk 0:02:14.7]} 0-1

[Event "Live Chess"]
[Site "Chess.com"]
[Date "2023.05.20"]
[Round "-"]
[White "JoshMcK"]
[Black "Vladyslav2008"]
[Result "0-1"]
[WhiteElo "1535"]
[BlackElo "2173"]
[TimeControl "300"]
[EndTime "11:07:30 PDT"]
[Termination "Vladyslav2008 won by resignation"]

1. e4 {[%clk 0:04:59.4]} 1... c5 {[%clk 0:04:50.5]} 2. c3 {[%clk 0:04:57.8]}
2... e6 {[%clk 0:04:48.4]} 3. d4 {[%clk 0:04:55.4]} 3... cxd4 {[%clk 0:04:47.3]}
4. cxd4 {[%clk 0:04:55.3]} 4... d5 {[%clk 0:04:46.3]} 5. exd5 {[%clk 0:04:54.3]}
5... exd5 {[%clk 0:04:45.2]} 6. Nc3 {[%clk 0:04:52.8]} 6... Nf6 {[%clk
0:04:43.5]} 7. Nf3 {[%clk 0:04:51.8]} 7... Nc6 {[%clk 0:04:39.6]} 8. Bb5 {[%clk
0:04:48.2]} 8... Bd6 {[%clk 0:04:36.9]} 9. O-O {[%clk 0:04:44.4]} 9... O-O
{[%clk 0:04:35.6]} 10. Bg5 {[%clk 0:04:35]} 10... a6 {[%clk 0:04:26.7]} 11. Ba4
{[%clk 0:04:31.7]} 11... b5 {[%clk 0:04:25.1]} 12. Bc2 {[%clk 0:04:30.5]} 12...
Be6 {[%clk 0:04:21]} 13. Bxf6 {[%clk 0:04:25.9]} 13... Qxf6 {[%clk 0:04:19.6]}
14. Qd3 {[%clk 0:04:21.9]} 14... g6 {[%clk 0:04:18.1]} 15. Rfe1 {[%clk
0:04:17.3]} 15... Nb4 {[%clk 0:04:16]} 16. Qd2 {[%clk 0:04:15.6]} 16... Nxc2
{[%clk 0:04:12.7]} 17. Qxc2 {[%clk 0:04:15.5]} 17... Bg4 {[%clk 0:04:10.8]} 18.
Ne5 {[%clk 0:04:12.2]} 18... Bf5 {[%clk 0:04:06.9]} 19. Qd2 {[%clk 0:04:09.5]}
19... b4 {[%clk 0:04:05.8]} 20. Nxd5 {[%clk 0:04:08.4]} 20... Qd8 {[%clk
0:04:03.2]} 21. Nxb4 {[%clk 0:03:58.9]} 21... Re8 {[%clk 0:03:57.3]} 22. Nf3
{[%clk 0:03:55.3]} 22... Qa5 {[%clk 0:03:54.1]} 23. a3 {[%clk 0:03:53.6]} 23...
Bg4 {[%clk 0:03:43.1]} 24. Ne5 {[%clk 0:03:40.5]} 24... Bxe5 {[%clk 0:03:28.2]}
25. dxe5 {[%clk 0:03:34.5]} 25... Rxe5 {[%clk 0:03:26.9]} 26. f3 {[%clk
0:03:25.2]} 26... Be6 {[%clk 0:03:20.3]} 27. Rxe5 {[%clk 0:03:15.2]} 27... Qxe5
{[%clk 0:03:18.5]} 28. Nc6 {[%clk 0:03:12.1]} 28... Qc5+ {[%clk 0:03:16.5]} 29.
Nd4 {[%clk 0:03:07.2]} 29... Rd8 {[%clk 0:03:15.9]} 30. Rd1 {[%clk 0:03:03.4]}
30... Bb3 {[%clk 0:03:15.1]} 31. Qc3 {[%clk 0:02:33.6]} 31... Qxc3 {[%clk
0:03:06.1]} 32. bxc3 {[%clk 0:02:33.5]} 32... Bxd1 {[%clk 0:03:04.9]} 33. Kf2
{[%clk 0:02:26.3]} 33... Rc8 {[%clk 0:03:03.2]} 0-1

[Event "Live Chess"]
[Site "Chess.com"]
[Date "2023.05.20"]
[Round "-"]
[White "Olisingapore"]
[Black "peter-785"]
[Result "1-0"]
[WhiteElo "1914"]
[BlackElo "1168"]
[TimeControl "300"]
[EndTime "11:07:37 PDT"]
[Termination "Olisingapore won on time"]

1. d4 {[%clk 0:04:53.4]} 1... d5 {[%clk 0:04:58.7]} 2. c4 {[%clk 0:04:52.7]}
2... c6 {[%clk 0:04:57.3]} 3. Nf3 {[%clk 0:04:49.4]} 3... e6 {[%clk 0:04:54.8]}
4. g3 {[%clk 0:04:49]} 4... Nf6 {[%clk 0:04:54.2]} 5. Bg2 {[%clk 0:04:46.5]}
5... Be7 {[%clk 0:04:50.2]} 6. Qb3 {[%clk 0:04:45.1]} 6... O-O {[%clk
0:04:37.2]} 7. O-O {[%clk 0:04:43.7]} 7... Nbd7 {[%clk 0:04:25.5]} 8. Nc3 {[%clk
0:04:37.5]} 8... a6 {[%clk 0:04:07.6]} 9. Re1 {[%clk 0:04:33.9]} 9... b5 {[%clk
0:04:05.2]} 10. c5 {[%clk 0:04:16.6]} 10... Re8 {[%clk 0:03:59.5]} 11. e4 {[%clk
0:04:12]} 11... Nxe4 {[%clk 0:03:45]} 12. Nxe4 {[%clk 0:04:07.8]} 12... dxe4
{[%clk 0:03:43]} 13. Rxe4 {[%clk 0:04:06.1]} 13... Nf6 {[%clk 0:03:41.6]} 14.
Rf4 {[%clk 0:04:01.4]} 14... Qc7 {[%clk 0:03:20]} 15. Ne5 {[%clk 0:03:54.3]}
15... Bb7 {[%clk 0:02:43.2]} 16. Be3 {[%clk 0:03:48.5]} 16... Rad8 {[%clk
0:02:21.2]} 17. Rd1 {[%clk 0:03:45.6]} 17... Rf8 {[%clk 0:02:17.3]} 18. Qc2
{[%clk 0:03:35.5]} 18... Nd5 {[%clk 0:02:14.1]} 19. Bxd5 {[%clk 0:03:27.8]}
19... exd5 {[%clk 0:02:06.4]} 20. Rf3 {[%clk 0:03:25.5]} 20... Bc8 {[%clk
0:01:42]} 21. Bf4 {[%clk 0:03:16.1]} 21... Qb7 {[%clk 0:01:25.8]} 22. Re1 {[%clk
0:03:10]} 22... f5 {[%clk 0:01:22.9]} 23. Nxc6 {[%clk 0:02:54.5]} 23... Qxc6
{[%clk 0:01:15.3]} 24. Rxe7 {[%clk 0:02:53.1]} 24... Rde8 {[%clk 0:01:10.4]} 25.
Rc7 {[%clk 0:02:48.5]} 25... Qe6 {[%clk 0:01:04]} 26. Be5 {[%clk 0:02:45.1]}
26... Re7 {[%clk 0:00:58.8]} 27. Rxe7 {[%clk 0:02:35.8]} 27... Qxe7 {[%clk
0:00:57.3]} 28. c6 {[%clk 0:02:34.2]} 28... Be6 {[%clk 0:00:48]} 29. c7 {[%clk
0:02:26.9]} 29... Rc8 {[%clk 0:00:46.8]} 30. Qc6 {[%clk 0:02:22.9]} 30... Kf7
{[%clk 0:00:34.3]} 31. Ra3 {[%clk 0:02:02.8]} 31... Bd7 {[%clk 0:00:24.4]} 32.
Qd6 {[%clk 0:01:54.1]} 32... Qxd6 {[%clk 0:00:22.6]} 33. Bxd6 {[%clk 0:01:53.1]}
33... Kf6 {[%clk 0:00:17.6]} 34. Rxa6 {[%clk 0:01:52.3]} 34... Re8 {[%clk
0:00:12.1]} 35. f4 {[%clk 0:01:41.3]} 35... Kf7 {[%clk 0:00:09.3]} 36. Be5
{[%clk 0:01:35.3]} 36... h6 {[%clk 0:00:08]} 37. Rd6 {[%clk 0:01:28.3]} 37...
Bc8 {[%clk 0:00:06.9]} 38. Rb6 {[%clk 0:01:23]} 38... Kg8 {[%clk 0:00:04.2]} 39.
Rxb5 {[%clk 0:01:22]} 39... Kh7 {[%clk 0:00:03.3]} 40. Rxd5 {[%clk 0:01:21.4]}
40... Rf8 {[%clk 0:00:00.7]} 41. Ra5 {[%clk 0:01:17.5]} 1-0

[Event "Live Chess"]
[Site "Chess.com"]
[Date "2023.05.20"]
[Round "-"]
[White "lightningorderyt"]
[Black "TDCMF"]
[Result "1-0"]
[WhiteElo "558"]
[BlackElo "362"]
[TimeControl "300"]
[EndTime "11:07:38 PDT"]
[Termination "lightningorderyt won by checkmate"]

1. d4 {[%clk 0:04:56.9]} 1... d5 {[%clk 0:04:58.6]} 2. c4 {[%clk 0:04:55.7]}
2... Bf5 {[%clk 0:04:52.8]} 3. Nc3 {[%clk 0:04:51.7]} 3... Nc6 {[%clk
0:04:44.9]} 4. Bf4 {[%clk 0:04:44.2]} 4... Nf6 {[%clk 0:04:25.6]} 5. e3 {[%clk
0:04:34.1]} 5... Nb4 {[%clk 0:04:24.1]} 6. Rc1 {[%clk 0:04:11.8]} 6... Bc2
{[%clk 0:04:08]} 7. Rxc2 {[%clk 0:04:09.7]} 7... Nxc2+ {[%clk 0:04:07.2]} 8.
Qxc2 {[%clk 0:04:09.1]} 8... e6 {[%clk 0:03:46.1]} 9. Bd3 {[%clk 0:04:01.1]}
9... Ng4 {[%clk 0:03:24.9]} 10. Nf3 {[%clk 0:03:51.9]} 10... f6 {[%clk
0:03:19.1]} 11. O-O {[%clk 0:03:49.2]} 11... g5 {[%clk 0:03:04]} 12. Bg3 {[%clk
0:03:42.6]} 12... f5 {[%clk 0:02:54.7]} 13. Ne5 {[%clk 0:03:20.2]} 13... Nxe5
{[%clk 0:02:43.3]} 14. Bxe5 {[%clk 0:03:17.4]} 14... Rg8 {[%clk 0:02:30.2]} 15.
Qb3 {[%clk 0:03:08]} 15... g4 {[%clk 0:02:20]} 16. Qxb7 {[%clk 0:03:03.5]} 16...
Rg6 {[%clk 0:02:09.8]} 17. Bxc7 {[%clk 0:02:53.4]} 17... Qh4 {[%clk 0:02:01.7]}
18. Qxa8+ {[%clk 0:02:46.7]} 18... Ke7 {[%clk 0:01:59.1]} 19. Qxa7 {[%clk
0:02:34.5]} 19... Rh6 {[%clk 0:01:57.7]} 20. Bg3+ {[%clk 0:02:30.7]} 20... Kf6
{[%clk 0:01:46.8]} 21. Bxh4+ {[%clk 0:02:28.2]} 21... Rxh4 {[%clk 0:01:46.5]}
22. g3 {[%clk 0:02:10.1]} 22... Rh3 {[%clk 0:01:41.8]} 23. Qa8 {[%clk
0:01:58.2]} 23... Bh6 {[%clk 0:01:30]} 24. c5 {[%clk 0:01:52.5]} 24... f4 {[%clk
0:01:27.4]} 25. exf4 {[%clk 0:01:48.5]} 25... Bxf4 {[%clk 0:01:23]} 26. gxf4
{[%clk 0:01:44.7]} 26... Rxd3 {[%clk 0:01:13]} 27. Qf8+ {[%clk 0:01:32.2]} 27...
Kg6 {[%clk 0:01:11.2]} 28. Qe8+ {[%clk 0:01:23.9]} 28... Kf5 {[%clk 0:01:08.2]}
29. c6 {[%clk 0:01:21.8]} 29... Kxf4 {[%clk 0:00:51]} 30. c7 {[%clk 0:01:21.7]}
30... Kf3 {[%clk 0:00:42.9]} 31. Qf8# {[%clk 0:01:15.8]} 1-0